bitfinex-derivatives/quotes_ETHF0:USTF0_20250123
["timestamp","ask_amount","ask_price","bid_price","bid_amount"]
[1737630018368,0.5113,3206.9,3206.8,0.62389]
[1737630018566,1.13518,3206.9,3206.5,2.46861728]
[1737630018764,3.2078,3207.0,3206.8,0.62389]
[1737630018964,3.83165,3207.0,3206.9,40.8]
[1737630019161,0.62385,3207.0,3206.9,40.8]
[1737630021069,0.62385,3207.0,3206.3,0.62399]
[1737630021070,0.62399,3206.4,3206.3,0.62399]
[1737630021372,4.02829728,3206.9,3206.1,3.2078]
[1737630021574,3.2078,3207.0,3206.1,3.2078]
[1737630021775,0.62394,3206.6,3206.1,3.2078]
[1737630022079,0.62394,3206.6,3206.5,0.62395]
[1737630022267,3.2078,3207.0,3206.2,2.46861728]
[1737630022468,0.62391,3206.7,3206.6,0.62392]
[1737630023370,0.62391,3206.7,3206.5,0.62393]
[1737630023566,0.62391,3206.7,3206.3,0.4824]
[1737630023765,0.62391,3206.7,3206.6,0.62393]
[1737630023961,3.2078,3207.0,3206.6,0.62393]
[1737630024169,3.2078,3207.0,3206.3,0.4824]
[1737630024375,0.62389,3206.8,3206.7,0.6239]
[1737630024573,0.62388,3206.9,3206.7,0.6239]
[1737630024776,3.83166,3207.0,3206.8,0.62387]
[1737630025082,3.83166,3207.0,3206.9,0.4957]
[1737630025376,3.83165,3207.0,3206.9,1.11957]
[1737630026066,3.2078,3207.0,3206.9,1.11957]
[1737630026774,3.2078,3207.0,3206.9,41.91957]
[1737630027378,0.62382,3207.2,3207.1,0.62382]
[1737630027568,0.5113,3207.3,3206.9,41.2957]
[1737630027769,1.1351,3207.3,3206.9,41.2957]
[1737630027968,1.1351,3207.3,3207.1,0.62381]
[1737630028270,0.62381,3207.2,3207.1,0.62381]
[1737630028772,1.1351,3207.3,3207.2,0.62381]
[1737630029277,0.6238,3207.3,3207.2,0.62381]
[1737630030873,16.63319194,3207.4,3206.9,44.50818318]
[1737630031073,0.62385,3207.0,3206.9,3.21248318]
[1737630032074,0.62385,3207.0,3206.9,0.00468318]
[1737630033878,0.62385,3207.0,3206.9,0.62855318]
[1737630034077,0.4896,3207.2,3206.9,0.00468318]
[1737630034383,0.62383,3207.2,3207.1,0.62381]
[1737630034568,0.62383,3207.2,3206.9,0.00468318]
[1737630034569,16.63319194,3207.4,3207.0,1.5537]
[1737630034773,0.62383,3207.1,3207.0,1.14164]
[1737630035777,0.62382,3207.2,3207.1,0.62381]
[1737630036471,16.63319194,3207.4,3207.0,0.5178]
[1737630036673,13.42539194,3207.4,3207.3,0.62379]
[1737630036877,12.61231395,3207.4,3207.3,0.62379]
[1737630037085,12.61231395,3207.4,3207.3,42.42459]
[1737630038879,3.2078,3208.7,3207.3,46.8008]
[1737630039076,3.2078,3209.1,3208.6,2.46861728]
[1737630039478,0.62349,3208.9,3208.7,0.62351]
[1737630039874,0.62347,3209.0,3208.8,0.62349]
[1737630040188,3.2078,3209.1,3208.6,2.46861728]
[1737630040383,0.62349,3208.9,3208.7,0.62351]
[1737630040679,3.2078,3209.1,3208.8,0.6235]
[1737630041189,3.2078,3209.1,3208.9,0.62347]
[1737630041486,3.83125,3209.1,3208.9,0.62347]
[1737630041881,3.83126,3209.1,3208.9,0.62347]
[1737630042481,0.62347,3209.0,3208.9,0.62347]
[1737630042686,0.62347,3209.0,3208.9,41.42347]
[1737630042885,0.62347,3209.0,3208.9,40.8]
[1737630043390,0.62347,3209.0,3208.9,41.42349]
[1737630043592,3.83126,3209.1,3208.9,41.42349]
[1737630043791,3.2078,3209.1,3208.9,0.62347]
[1737630043987,3.2078,3209.1,3209.0,0.62347]
[1737630044187,3.2078,3209.1,3209.0,1.12217]
[1737630045490,3.2078,3209.1,3209.0,41.92217]
[1737630045894,3.2078,3209.1,3209.0,1.12217]
[1737630046491,3.2078,3209.1,3209.0,0.62347]
[1737630047297,3.2078,3209.7,3209.0,0.62347]
[1737630047497,0.62342,3209.3,3209.0,0.62347]
[1737630048211,3.2078,3209.7,3208.9,2.46861728]
[1737630048397,0.62347,3209.0,3208.8,1.12219]
[1737630048593,0.62343,3209.3,3209.1,0.62344]
[1737630048803,0.62347,3209.0,3208.9,2.46861728]
[1737630049105,0.62346,3209.1,3208.9,43.89209728]
[1737630049400,1.55838,3209.6,3208.9,43.26861728]
[1737630049600,3.2078,3209.3,3208.6,2.46861728]
[1737630049807,0.62351,3208.8,3208.6,0.62353]
[1737630050000,0.4837,3209.2,3208.5,0.00467581]
[1737630050201,0.489,3209.1,3208.5,0.00467581]
[1737630050401,0.489,3209.1,3208.6,0.62353]
[1737630050402,0.62351,3208.8,3208.6,0.62353]
[1737630050597,0.62351,3208.8,3208.7,0.62352]
[1737630050803,0.489,3209.1,3208.7,0.62352]
[1737630051006,0.6235,3208.9,3208.7,0.62352]
[1737630051407,0.6235,3208.9,3208.8,0.6235]
[1737630051705,0.4837,3209.2,3208.6,2.46861728]
[1737630052008,1.83,3209.4,3208.9,2.46861728]
[1737630052210,0.62342,3209.3,3209.2,0.62342]
[1737630053005,0.5154,3209.5,3209.0,0.491]
[1737630053202,0.6234,3209.4,3209.3,0.62339]
[1737630053505,0.62339,3209.4,3209.3,0.62341]
[1737630054209,0.4951,3209.6,3209.2,2.46861728]
[1737630054404,0.62339,3209.5,3209.4,0.62337]
[1737630055107,0.6233,3209.9,3209.7,0.62333]
[1737630055408,0.6233,3209.9,3209.7,3.09194728]
[1737630056111,0.996,3210.4,3209.7,3.09194728]
[1737630056112,14.02120252,3209.8,3209.7,3.09194728]
[1737630056298,14.02120252,3209.8,3209.7,43.89194728]
[1737630056299,13.39789252,3209.8,3209.7,43.89194728]
[1737630058209,0.6233,3209.9,3209.7,43.26861728]
[1737630058409,0.6233,3209.9,3209.8,0.62331]
[1737630059114,0.62331,3209.8,3209.7,43.89193728]
[1737630059321,0.62335,3209.6,3209.5,1.11446]
[1737630060009,0.62335,3209.6,3209.5,0.4911]
[1737630060310,3.2078,3209.9,3209.1,2.97531728]
[1737630060508,0.62343,3209.2,3209.1,2.97531728]
[1737630060809,1.55843,3209.5,3208.8,3.09210728]
[1737630060810,0.62348,3208.9,3208.8,3.09210728]
[1737630061313,0.62348,3208.9,3208.8,43.89211728]
[1737630061503,0.62348,3209.0,3208.9,0.62348]
[1737630061698,1.55847,3209.4,3208.8,43.26861728]
[1737630061905,0.62348,3209.0,3208.9,0.62348]
[1737630062305,3.2078,3209.5,3208.8,43.89210728]
[1737630062306,0.62348,3208.9,3208.8,43.89210728]
[1737630063412,1.55852,3209.3,3208.8,43.26861728]
[1737630063709,0.62348,3209.0,3208.9,0.62348]
[1737630066811,0.62348,3209.0,3208.9,0.4908]
[1737630067614,0.62349,3208.9,3208.8,40.8]
[1737630069821,0.62355,3208.6,3208.5,3.57326309]
[1737630070017,0.62355,3208.6,3208.5,0.00467581]
[1737630070222,3.2078,3208.7,3207.8,3.2078]
[1737630070411,0.62369,3207.9,3207.8,3.2078]
[1737630070719,0.62369,3207.9,3207.8,44.63151]
[1737630071018,0.62367,3208.0,3207.9,0.62368]
[1737630071612,0.62369,3207.9,3207.8,44.63149]
[1737630072325,0.62369,3207.9,3207.8,44.0078]
[1737630072819,3.21245124,3208.3,3207.8,44.0078]
[1737630073021,0.00465124,3208.3,3208.2,3.09224728]
[1737630073217,0.62357,3208.5,3208.4,0.62358]
[1737630073415,3.2078,3208.7,3208.3,1.0329]
[1737630073620,3.2078,3208.7,3208.5,2.46861728]
[1737630073812,3.83134,3208.7,3208.6,0.62355]
[1737630074412,0.62355,3208.6,3208.5,0.62356]
[1737630075123,0.62355,3208.6,3208.5,40.8]
[1737630075817,3.2078,3208.7,3208.0,1.0048]
[1737630076128,0.62358,3208.5,3208.4,0.62358]
[1737630076323,0.6236,3208.4,3208.3,0.6236]
[1737630077427,0.62363,3208.2,3208.1,40.8]
[1737630077823,0.62363,3208.2,3208.1,41.42365]
[1737630079629,0.6236,3208.4,3208.3,0.62359]
[1737630081223,0.62355,3208.7,3208.6,0.62354]
[1737630081721,0.62355,3208.6,3208.5,3.09217728]
[1737630081921,0.62351,3208.9,3208.8,0.6235]
[1737630082826,0.62353,3208.8,3208.7,0.62353]
[1737630083430,0.62358,3208.8,3208.7,0.62357]
[1737630083934,0.62364,3208.4,3208.3,0.25468772]
[1737630084228,3.2078,3209.0,3208.2,2.99571728]
[1737630084527,1.55871,3209.3,3208.5,2.46861728]
[1737630084732,0.62358,3208.7,3208.6,0.62357]
[1737630084921,3.2078,3209.4,3208.6,0.5156]
[1737630085118,0.4788,3209.1,3208.6,0.5156]
[1737630085325,0.62362,3208.5,3208.4,0.62361]
[1737630086325,0.6236,3208.6,3208.5,0.62359]
[1737630086529,0.6236,3208.6,3208.2,3.51131728]
[1737630086530,0.62358,3208.7,3208.6,0.62356]
[1737630086728,0.62357,3208.8,3208.7,0.62355]
[1737630087231,3.83136,3208.9,3208.8,0.62355]
[1737630087423,0.62357,3208.8,3208.7,0.62355]
[1737630087626,3.2078,3208.9,3208.5,2.46861728]
[1737630087822,0.62356,3208.8,3208.7,0.62355]
[1737630088732,0.62358,3208.7,3208.6,0.62356]
[1737630090929,0.62359,3208.6,3208.5,3.09220728]
[1737630091337,0.62364,3208.4,3208.3,0.62363]
[1737630091529,0.62364,3208.3,3208.2,3.61936728]
[1737630092739,0.62364,3208.4,3208.3,0.62363]
[1737630093035,2.52988,3208.8,3208.2,2.99571728]
[1737630093235,0.62364,3208.3,3208.2,3.61936728]
[1737630093623,0.62364,3208.3,3208.2,2.99571728]
[1737630093824,0.62366,3208.2,3208.1,40.8]
[1737630095139,3.2078,3208.5,3208.1,40.8]
[1737630095439,0.62366,3208.2,3208.1,40.8]
[1737630098027,0.62376,3207.7,3207.6,0.00467581]
[1737630098731,0.62376,3207.7,3207.1,3.2078]
[1737630098732,4.09201093,3207.7,3207.1,3.2078]
[1737630098934,0.62386,3207.2,3207.1,3.2078]
[1737630099143,0.62386,3207.2,3207.1,44.0078]
[1737630099439,0.624,3206.5,3206.4,2.46861728]
[1737630099641,0.624,3206.5,3206.4,3.60213728]
[1737630099840,0.624,3206.5,3206.4,43.77811728]
[1737630102648,0.62404,3206.3,3206.2,0.5214]
[1737630102939,0.4956,3206.7,3206.2,0.5214]
[1737630102940,0.62403,3206.4,3206.2,0.5214]
[1737630103141,0.62403,3206.4,3206.3,41.42404]
[1737630103439,0.62403,3206.4,3206.3,40.8]
[1737630104640,0.62403,3206.4,3206.3,41.42404]
[1737630104842,0.62403,3206.4,3206.3,40.8]
[1737630105140,0.62403,3206.4,3206.3,41.42404]
[1737630105337,3.21247581,3206.8,3206.3,41.42404]
[1737630105338,3.21247581,3206.8,3206.3,40.8]
[1737630105530,0.62399,3206.6,3206.5,0.624]
[1737630105729,0.62399,3206.6,3206.3,40.8]
[1737630105730,0.62399,3206.6,3206.4,0.62401]
[1737630105934,3.21247581,3206.8,3206.4,0.62401]
[1737630106144,0.624,3206.5,3206.4,0.62401]
[1737630106736,3.21247581,3206.8,3206.3,40.8]
[1737630107035,3.21247581,3206.8,3206.5,0.62399]
[1737630107235,3.21247581,3206.8,3206.3,40.8]
[1737630107439,0.624,3206.5,3206.4,0.624]
[1737630108545,3.21247581,3206.8,3206.4,0.624]
[1737630108841,3.21247581,3206.8,3206.3,40.8]
[1737630109144,0.62402,3206.4,3206.3,40.8]
[1737630110246,0.62405,3206.2,3206.1,0.00467581]
[1737630110443,3.2078,3206.4,3206.1,2.47329309]
[1737630110637,3.2078,3206.4,3206.2,40.8]
[1737630110838,0.62404,3206.3,3206.2,41.42405]
[1737630111147,0.62404,3206.3,3206.2,40.8]
[1737630111736,0.62404,3206.3,3206.2,41.42405]
[1737630112438,0.62404,3206.3,3206.2,40.8]
[1737630112842,3.2078,3206.4,3206.2,40.8]
[1737630113046,0.62401,3206.5,3206.2,40.8]
[1737630113338,0.62401,3206.5,3206.4,0.62402]
[1737630113744,0.62396,3206.7,3206.6,0.62396]
[1737630113940,3.83642581,3206.8,3206.7,0.62396]
[1737630114138,3.83642581,3206.8,3206.7,0.5007]
[1737630114546,3.21247581,3206.8,3206.7,1.12466]
[1737630114846,3.21247581,3206.8,3206.7,3.59327728]
[1737630116535,3.21247581,3206.8,3206.7,1.12466]
[1737630116735,0.00467581,3206.8,3206.7,1.12466]
[1737630117540,3.2078,3207.4,3206.7,6.17711728]
[1737630117740,0.62388,3207.2,3207.1,0.62386]
[1737630117943,3.2078,3207.4,3206.7,6.17711728]
[1737630118142,0.62384,3207.3,3207.2,0.62385]
[1737630118340,3.83164,3207.4,3207.3,0.62384]
[1737630118540,3.2078,3207.4,3207.0,2.46861728]
[1737630118745,5.29188,3207.8,3207.0,2.46861728]
[1737630119055,0.62385,3207.3,3207.2,0.62384]
[1737630119350,0.62383,3207.4,3207.3,0.62383]
[1737630119540,4.76718,3207.8,3207.0,2.46861728]
[1737630119736,0.62383,3207.4,3207.3,0.62383]
[1737630120345,0.62383,3207.4,3207.0,2.46861728]
[1737630120346,3.2078,3207.8,3207.0,2.46861728]
[1737630120550,0.62381,3207.5,3207.4,0.6238]
[1737630121446,0.62381,3207.5,3207.4,0.62381]
[1737630121947,0.62381,3207.5,3207.4,40.8]
[1737630123052,3.2078,3207.8,3207.4,40.8]
[1737630123353,0.62377,3207.7,3207.6,0.62377]
[1737630123557,0.5124,3208.0,3207.8,0.62373]
[1737630123558,0.62372,3208.0,3207.8,0.62373]
[1737630123849,0.62372,3208.0,3207.9,0.62372]
[1737630124744,3.2078,3208.2,3208.1,0.62368]
[1737630124944,0.62366,3208.3,3207.9,2.46861728]
[1737630125150,0.62367,3208.2,3208.1,0.62368]
[1737630126251,3.2078,3208.6,3208.0,0.62369]
[1737630126252,0.62369,3208.1,3208.0,0.62369]
[1737630126444,3.2078,3208.6,3207.9,2.46861728]
[1737630126645,0.62364,3208.4,3208.2,0.62366]
[1737630126954,3.2078,3208.6,3207.9,2.46861728]
[1737630127351,0.62372,3207.9,3207.8,0.00467581]
[1737630129449,0.62372,3207.9,3207.8,0.62841581]
[1737630130146,3.2078,3208.1,3208.0,0.6237]
[1737630130955,3.2078,3208.1,3208.0,1.1237]
[1737630131556,0.6236,3208.6,3208.5,0.62361]
[1737630132053,0.62362,3208.5,3208.4,0.62362]
[1737630133357,0.62362,3208.5,3208.2,2.46861728]
[1737630133358,3.83138,3208.7,3208.6,0.62359]
[1737630133544,3.2078,3208.7,3208.3,0.5083]
[1737630133748,0.62359,3208.6,3208.5,0.6236]
[1737630134153,3.2078,3208.7,3208.3,0.5083]
[1737630134356,0.62362,3208.5,3208.4,0.62362]
[1737630134657,0.6236,3208.6,3208.3,0.5083]
[1737630134855,3.2078,3208.7,3207.9,5.67641728]
[1737630135053,0.6237,3208.0,3207.9,3.83151]
[1737630135253,0.6237,3208.0,3207.9,3.2078]
[1737630135650,0.6237,3208.0,3207.9,0.62372]
[1737630135950,2.54293,3208.5,3207.9,0.62372]
[1737630135951,2.54293,3208.5,3207.9,1.13202]
[1737630136157,0.9839,3208.5,3208.0,0.62369]
[1737630136461,0.9839,3208.5,3208.1,0.62367]
[1737630136759,0.62368,3208.1,3208.0,0.4781]
[1737630136949,0.6237,3208.0,3207.9,4.08982728]
[1737630137948,3.2078,3209.2,3208.2,1.55917]
[1737630138260,0.528,3209.5,3209.0,2.46861728]
[1737630138559,3.2078,3209.7,3209.1,0.5125]
[1737630138853,0.9898,3209.9,3209.1,1.0361]
[1737630139049,0.6234,3209.6,3209.4,0.62342]
[1737630139251,0.9898,3209.9,3209.1,1.0361]
[1737630139252,3.2078,3209.7,3209.6,0.62339]
[1737630139450,3.83118,3209.7,3209.3,2.46861728]
[1737630139658,3.2078,3209.7,3209.3,2.46861728]
[1737630139857,3.83118,3209.7,3209.5,0.62341]
[1737630140054,3.2078,3209.7,3209.5,0.62341]
[1737630140258,0.62339,3209.7,3209.5,0.62341]
[1737630141051,0.62335,3209.8,3209.3,2.46861728]
[1737630141251,0.62335,3209.8,3209.5,0.6234]
[1737630141860,0.62339,3209.7,3209.5,0.62341]
[1737630142052,0.528,3209.9,3209.5,0.62341]
[1737630142253,0.62338,3209.7,3209.5,0.62341]
[1737630143057,0.528,3209.9,3209.6,0.62339]
[1737630143457,0.62336,3209.8,3209.6,0.62339]
[1737630143657,16.60569252,3210.1,3209.6,2.46861728]
[1737630143860,0.62333,3210.0,3209.8,0.62334]
[1737630144457,0.62333,3209.9,3209.8,0.62334]
[1737630144655,0.62333,3209.9,3209.7,0.4971]
[1737630144852,0.62333,3209.9,3209.8,0.62335]
[1737630145057,0.62333,3210.0,3209.8,0.62335]
[1737630145458,0.62333,3209.9,3209.8,0.62335]
[1737630146055,0.62333,3209.9,3209.7,0.4971]
[1737630146258,0.62332,3210.0,3209.8,0.62334]
[1737630146459,0.62333,3209.9,3209.8,0.62334]
[1737630147061,0.62333,3209.9,3209.7,0.4971]
[1737630147262,0.62333,3210.0,3209.8,0.62335]
[1737630148564,0.62334,3209.9,3209.8,0.62335]
[1737630149871,0.62334,3209.9,3209.7,0.4971]
[1737630149872,3.2078,3210.1,3209.7,0.4971]
[1737630150068,3.2078,3210.1,3210.0,0.62332]
[1737630152174,0.62329,3210.2,3209.9,2.46861728]
[1737630152370,0.62329,3210.2,3210.1,0.6233]
[1737630152867,0.5206,3210.4,3209.9,2.46861728]
[1737630153074,0.62327,3210.3,3210.2,0.62327]
[1737630153264,0.5206,3210.4,3209.9,2.46861728]
[1737630153464,0.62329,3210.2,3210.1,0.62329]
[1737630154563,0.5206,3210.4,3210.1,0.62329]
[1737630154771,0.62327,3210.3,3210.2,0.62327]
[1737630154967,0.62328,3210.2,3210.1,0.62328]
[1737630155678,0.5206,3210.4,3209.9,2.46861728]
[1737630155869,0.62336,3209.8,3209.7,1.64317]
[1737630156065,1.5583,3210.0,3209.5,0.62341]
[1737630156380,0.62341,3209.5,3209.4,40.8]
[1737630156774,0.62345,3209.3,3209.2,0.00467581]
[1737630157275,0.62345,3209.3,3209.2,40.80467581]
[1737630157471,0.62345,3209.3,3209.2,41.42814581]
[1737630157863,0.5147,3209.6,3209.2,40.80467581]
[1737630158067,0.62341,3209.5,3209.4,3.09204728]
[1737630158467,0.6234,3209.6,3209.5,0.6234]
[1737630158972,0.6234,3209.6,3209.4,2.46861728]
[1737630158973,3.689,3209.7,3209.4,2.46861728]
[1737630159174,0.62341,3209.6,3209.5,0.62341]
[1737630159378,0.62341,3209.5,3209.4,3.09204728]
[1737630162470,3.2078,3209.7,3209.4,2.46861728]
[1737630162768,0.6234,3209.6,3209.5,0.6234]
[1737630162969,0.62341,3209.5,3209.4,2.46861728]
[1737630163170,3.2078,3209.7,3209.2,40.80467581]
[1737630163370,0.62345,3209.3,3209.2,0.00467581]
[1737630165876,3.83125,3209.3,3209.2,0.00467581]
[1737630167378,7.83097769,3209.3,3209.2,0.00467581]
[1737630168073,12.5616263,3209.3,3208.2,2.46861728]
[1737630168282,4.76678,3208.6,3207.7,0.5213]
[1737630168484,3.2078,3208.2,3207.7,0.5213]
[1737630168679,0.62374,3207.9,3207.8,41.42374]
[1737630168883,3.2078,3208.2,3207.8,41.42374]
[1737630169069,3.2078,3208.2,3207.8,40.8]
[1737630169384,3.2078,3208.2,3207.9,2.46861728]
[1737630169569,3.2078,3208.2,3208.1,0.62369]
[1737630169972,3.64120469,3208.2,3208.1,0.62369]
[1737630170377,3.2078,3208.2,3208.1,0.62369]
[1737630171076,3.2078,3208.2,3208.1,41.42369]
[1737630173184,3.83147,3208.2,3208.1,41.42369]
[1737630173375,3.83147,3208.2,3208.1,40.8]
[1737630173776,3.83147,3208.2,3208.1,41.42369]
[1737630175784,3.83147,3208.2,3208.1,40.8]
[1737630177086,4.31897,3208.2,3208.1,40.8]
[1737630177392,3.6953,3208.2,3207.9,0.4888]
[1737630177685,3.6953,3208.2,3207.9,2.95741728]
[1737630177878,3.6953,3208.2,3208.0,40.8]
[1737630177879,0.6237,3208.1,3208.0,40.8]
[1737630179186,0.6237,3208.1,3208.0,41.4237]
[1737630179387,0.6237,3208.1,3208.0,40.8]
[1737630182591,0.6237,3208.1,3208.0,41.4237]
[1737630183490,3.2078,3208.2,3208.1,0.62368]
[1737630183687,3.83146,3208.2,3208.0,41.8026]
[1737630183890,0.62368,3208.1,3208.0,40.8]
[1737630184093,0.62374,3207.8,3207.7,0.00467581]
[1737630184292,3.2078,3207.8,3207.2,0.4796]
[1737630184591,3.83164,3207.3,3207.2,0.4796]
[1737630185091,3.83164,3207.3,3207.2,41.2796]
[1737630185290,3.2078,3207.3,3207.2,41.90346]
[1737630185493,3.2078,3207.3,3207.2,41.2796]
[1737630185695,3.2078,3207.3,3206.9,0.00467581]
[1737630185882,0.6239,3207.0,3206.9,0.00467581]
[1737630186193,0.6239,3207.0,3206.9,40.80467581]
[1737630187184,0.6239,3207.0,3206.9,0.00467581]
[1737630187793,0.6239,3207.0,3206.9,0.62859581]
[1737630187995,0.6239,3207.0,3206.9,0.00467581]
[1737630188291,0.6239,3207.0,3206.9,0.62859581]
[1737630189493,0.6239,3207.0,3206.9,0.00467581]
[1737630192094,0.6239,3207.0,3206.9,40.80467581]
[1737630192689,0.6239,3207.0,3206.9,0.00467581]
[1737630192886,4.65576908,3207.0,3206.9,0.00467581]
[1737630193991,4.65576908,3207.0,3206.2,0.9679]
[1737630193992,4.03186908,3207.0,3206.2,0.9679]
[1737630194193,0.62403,3206.3,3206.2,0.9679]
[1737630194395,0.62403,3206.4,3206.2,1.59195]
[1737630194592,0.62403,3206.3,3206.2,1.59195]
[1737630194800,0.62403,3206.3,3206.2,0.9679]
[1737630195700,0.62403,3206.3,3206.2,0.4807]
[1737630195901,0.62408,3206.0,3205.9,0.00467581]
[1737630201300,0.62404,3206.0,3205.9,0.62873581]
[1737630201501,3.83184,3206.1,3206.0,0.62404]
[1737630201999,3.2078,3206.1,3205.9,0.00467581]
[1737630202199,0.62404,3206.0,3205.9,1.11892581]
[1737630202599,3.83184,3206.1,3205.9,1.11892581]
[1737630202801,3.2078,3206.1,3205.9,0.49487581]
[1737630203001,0.62404,3206.0,3205.9,1.11892581]
[1737630205701,0.62404,3206.0,3205.9,0.49487581]
[1737630207703,3.2078,3206.1,3205.9,0.49487581]
[1737630207901,3.83184,3206.1,3206.0,0.62404]
[1737630208101,0.62404,3206.0,3205.9,1.11892581]
[1737630208701,3.2078,3206.1,3205.9,0.49487581]
[1737630208899,3.83184,3206.1,3206.0,0.62404]
[1737630209100,3.2078,3206.1,3206.0,0.62404]
[1737630209406,3.2078,3206.5,3206.4,0.62397]
[1737630211605,0.00467581,3206.6,3206.5,0.62395]
[1737630211905,0.00467581,3206.6,3206.5,3.59476728]
[1737630212309,0.00467581,3206.6,3206.5,44.39476728]
[1737630215907,0.00467581,3206.6,3206.5,47.60256728]
[1737630216305,3.2078,3207.2,3206.5,46.97861728]
[1737630216507,3.83163,3207.2,3207.1,0.62383]
[1737630216713,3.2078,3207.2,3207.1,0.62383]
[1737630217310,3.2078,3207.7,3207.1,2.46861728]
[1737630217509,3.2078,3207.7,3207.0,1.5596]
[1737630217510,3.2078,3207.7,3207.6,3.09234728]
[1737630218112,3.2078,3207.7,3207.6,43.89234728]
[1737630219608,3.83151,3207.7,3207.6,43.26861728]
[1737630219806,3.2078,3207.7,3207.4,0.5084]
[1737630220006,0.62375,3207.5,3207.4,0.5084]
[1737630220413,3.2078,3207.7,3207.5,0.62375]
[1737630220414,0.62374,3207.6,3207.5,0.62375]
[1737630220806,0.62375,3207.5,3207.4,1.13216]
[1737630221313,3.2078,3207.7,3207.6,0.62373]
[1737630221708,0.62371,3207.8,3207.7,0.62371]
[1737630222816,0.00467581,3208.0,3207.5,0.5094]
[1737630222817,0.00467581,3208.0,3207.6,2.46861728]
[1737630223111,0.00467581,3208.0,3207.9,0.62367]
[1737630223917,0.00467581,3208.0,3207.9,3.09228728]
[1737630224713,3.2078,3209.1,3208.7,0.62351]
[1737630224913,3.2078,3209.1,3208.7,2.46861728]
[1737630225111,3.2078,3209.1,3209.0,0.62346]
[1737630225313,3.2078,3209.1,3209.0,41.42346]
[1737630225615,3.83124,3209.1,3209.0,40.8]
[1737630225816,0.62346,3209.0,3208.5,0.62356]
[1737630226014,3.2078,3209.1,3208.7,3.09211728]
[1737630226215,0.62349,3208.9,3208.8,40.8]
[1737630228209,0.6235,3208.8,3208.7,2.46861728]
[1737630228515,0.6235,3208.8,3208.3,1.0044]
[1737630228516,3.2078,3209.1,3208.4,2.46861728]
[1737630228717,0.62354,3208.6,3208.4,3.09217728]
[1737630229214,0.62358,3208.4,3208.3,1.0044]
[1737630229614,3.7201,3208.7,3208.1,2.46861728]
[1737630229919,0.62359,3208.4,3208.2,0.62362]
[1737630230115,0.62359,3208.4,3208.3,0.6236]
[1737630230713,0.62361,3208.3,3208.2,0.62361]
[1737630231012,0.62361,3208.3,3208.1,2.46861728]
[1737630231013,0.62357,3208.5,3208.4,0.62357]
[1737630231211,0.62357,3208.5,3208.4,2.46861728]
[1737630231417,0.62357,3208.5,3208.4,3.09219728]
[1737630232014,3.2078,3208.7,3208.4,2.46861728]
[1737630232317,3.83133,3208.7,3208.6,0.62354]
[1737630232519,3.2078,3208.7,3208.6,0.62354]
[1737630233618,0.62349,3208.9,3208.5,1.4994]
[1737630233819,0.6235,3208.9,3208.8,0.6235]
[1737630234016,1.55861,3209.1,3208.7,2.46861728]
[1737630234215,1.55861,3209.1,3208.5,1.018]
[1737630234417,5.58809356,3209.1,3208.5,1.018]
[1737630234616,0.62354,3208.7,3208.6,0.62354]
[1737630234822,0.62346,3209.0,3208.5,1.64155]
[1737630235024,0.62353,3208.7,3208.5,1.018]
[1737630235218,0.62353,3208.7,3208.5,1.64155]
[1737630235425,0.62354,3208.6,3208.5,1.64155]
[1737630235615,1.55861,3209.1,3208.4,2.46861728]
[1737630235819,3.2078,3208.8,3208.1,2.46861728]
[1737630236020,0.6236,3208.4,3208.1,2.46861728]
[1737630236216,0.6236,3208.4,3208.3,0.6236]
[1737630236728,0.9894,3208.6,3208.2,0.62361]
[1737630236729,0.6236,3208.3,3208.2,0.62361]
[1737630237222,0.62361,3208.3,3208.2,0.6236]
[1737630237429,0.62362,3208.2,3208.0,1.5597]
[1737630237622,0.62366,3208.0,3207.9,40.8]
[1737630238322,0.62366,3208.0,3207.9,41.42367]
[1737630238523,0.62366,3208.0,3207.9,40.8]
[1737630240830,0.62362,3208.2,3208.1,0.62362]
[1737630241036,0.62362,3208.2,3208.1,3.09223728]
[1737630241234,0.62362,3208.2,3208.1,2.46861728]
[1737630241831,0.62364,3208.1,3208.0,0.4933]
[1737630242339,0.43245709,3208.3,3208.0,1.11696]
[1737630242531,0.62364,3208.1,3208.0,1.11696]
[1737630242736,0.62361,3208.3,3208.2,0.62362]
[1737630242933,3.2078,3208.4,3208.1,2.94641728]
[1737630243131,0.62362,3208.2,3208.1,2.94641728]
[1737630243327,3.2078,3208.4,3208.0,0.4933]
[1737630243625,3.2078,3208.4,3207.9,44.0078]
[1737630243626,0.62366,3208.0,3207.9,44.0078]
[1737630244630,0.62366,3208.0,3207.9,44.63147]
[1737630244833,0.62366,3208.0,3207.9,44.0078]
[1737630245140,0.62366,3208.0,3207.9,40.8]
[1737630245539,0.62366,3208.0,3207.9,41.42367]
[1737630246545,0.43245709,3208.3,3207.9,40.8]
[1737630246546,0.12117634,3208.3,3207.9,40.8]
[1737630246749,0.12117634,3208.3,3208.2,3.09223728]
[1737630247141,0.62355,3208.6,3208.5,0.62356]
[1737630247444,3.2078,3209.2,3208.3,1.0279]
[1737630247644,0.62353,3208.7,3208.6,0.62353]
[1737630247841,0.62353,3208.7,3208.6,1.12343]
[1737630248041,3.2078,3209.2,3208.5,2.46861728]
[1737630248244,0.62354,3208.6,3208.5,3.09216728]
[1737630249249,0.62351,3208.8,3208.7,0.6235]
[1737630249643,0.62351,3208.8,3208.5,2.46861728]
[1737630249644,0.62354,3208.7,3208.6,0.62353]
[1737630250046,0.62351,3208.8,3208.7,0.62351]
[1737630251750,3.2078,3209.2,3208.7,0.62351]
[1737630251955,0.62347,3209.0,3208.9,2.46861728]